[Event "Titled Tuesday Blitz February 22 Late 2022"]
[White "Sanchez Alvares, Kelvin Antonio"]
[Black "Prohorov, Olexandr"]
[WhiteFideId "3906680"]
[BlackFideId "14105578"]
[WhiteElo "2193"]
[BlackElo "1993"]
[Result "1-0"]
[Round "04"]
[TimeControl "180+1"]
[Date "2022.02.23"]
[WhiteClock "0:00:17"]
[BlackClock "0:00:04"]

1. d4 {[%clk 0:03:00]}  g6 {[%clk 0:02:58]} 2. c4 {[%clk 0:03:01]}  Bg7 {[%clk 0:02:58]} 3. Nf3 {[%clk 0:03:01]}  c5 {[%clk 0:02:57]} 4. d5 {[%clk 0:03:01]}  d6 {[%clk 0:02:54]} 5. g3 {[%clk 0:03:01]}  e6 {[%clk 0:02:51]} 6. Bg2 {[%clk 0:03:01]}  exd5 {[%clk 0:02:50]} 7. cxd5 {[%clk 0:03:01]}  Ne7 {[%clk 0:02:50]} 8. O-O {[%clk 0:03:02]}  O-O {[%clk 0:02:50]} 9. Nc3 {[%clk 0:03:01]}  a6 {[%clk 0:02:45]} 10. a4 {[%clk 0:03:00]}  b6 {[%clk 0:02:46]} 11. e4 {[%clk 0:02:59]}  Nd7 {[%clk 0:02:46]} 12. h3 {[%clk 0:02:58]}  f5 {[%clk 0:02:42]} 13. Ng5 {[%clk 0:02:52]}  Nf6 {[%clk 0:02:39]} 14. exf5 {[%clk 0:02:50]}  Nxf5 {[%clk 0:02:35]} 15. Ne6 {[%clk 0:02:49]}  Bxe6 {[%clk 0:02:35]} 16. dxe6 {[%clk 0:02:50]}  Rb8 {[%clk 0:02:35]} 17. Bg5 {[%clk 0:02:50]}  h6 {[%clk 0:02:27]} 18. Bxf6 {[%clk 0:02:47]}  Qxf6 {[%clk 0:02:28]} 19. Re1 {[%clk 0:02:35]}  Nd4 {[%clk 0:02:19]} 20. f4 {[%clk 0:02:35]}  Rbe8 {[%clk 0:02:07]} 21. Nd5 {[%clk 0:02:27]}  Qf5 {[%clk 0:02:07]} 22. g4 {[%clk 0:02:23]}  Qc2 {[%clk 0:02:06]} 23. Nxb6 {[%clk 0:02:12]}  Rxf4 {[%clk 0:01:49]} 24. Kh1 {[%clk 0:02:01]}  Rf2 {[%clk 0:01:44]} 25. Qxc2 {[%clk 0:01:55]}  Nxc2 {[%clk 0:01:43]} 26. Rad1 {[%clk 0:01:55]}  Nxe1 {[%clk 0:01:42]} 27. Rxe1 {[%clk 0:01:56]}  Be5 {[%clk 0:01:39]} 28. Nc4 {[%clk 0:01:50]}  Bg3 {[%clk 0:01:26]} 29. Re3 {[%clk 0:01:43]}  Bf4 {[%clk 0:01:25]} 30. Re1 {[%clk 0:01:40]}  Rc2 {[%clk 0:01:23]} 31. Bd5 {[%clk 0:01:35]}  Kg7 {[%clk 0:01:23]} 32. Rf1 {[%clk 0:01:31]}  g5 {[%clk 0:01:22]} 33. Rxf4 {[%clk 0:01:22]}  gxf4 {[%clk 0:01:22]} 34. Nxd6 {[%clk 0:01:22]}  Kf8 {[%clk 0:00:54]} 35. Nxe8 {[%clk 0:01:17]}  Kxe8 {[%clk 0:00:54]} 36. b3 {[%clk 0:01:18]}  Ke7 {[%clk 0:00:54]} 37. Kg1 {[%clk 0:01:15]}  Kd6 {[%clk 0:00:53]} 38. Bc4 {[%clk 0:01:15]}  a5 {[%clk 0:00:34]} 39. h4 {[%clk 0:00:57]}  Rc3 {[%clk 0:00:33]} 40. Kf2 {[%clk 0:00:52]}  Rg3 {[%clk 0:00:33]} 41. g5 {[%clk 0:00:46]}  hxg5 {[%clk 0:00:34]} 42. hxg5 {[%clk 0:00:46]}  Rxg5 {[%clk 0:00:34]} 43. Kf3 {[%clk 0:00:47]}  Rh5 {[%clk 0:00:31]} 44. Kxf4 {[%clk 0:00:46]}  Rh4+ {[%clk 0:00:31]} 45. Ke3 {[%clk 0:00:46]}  Rd4 {[%clk 0:00:28]} 46. Kf3 {[%clk 0:00:41]}  Rd1 {[%clk 0:00:23]} 47. Ke4 {[%clk 0:00:41]}  Re1+ {[%clk 0:00:23]} 48. Kd3 {[%clk 0:00:40]}  Re5 {[%clk 0:00:23]} 49. Kc3 {[%clk 0:00:39]}  Re3+ {[%clk 0:00:21]} 50. Kd2 {[%clk 0:00:39]}  Rg3 {[%clk 0:00:21]} 51. Kc2 {[%clk 0:00:39]}  Rg7 {[%clk 0:00:21]} 52. Kc3 {[%clk 0:00:38]}  Ke5 {[%clk 0:00:21]} 53. Kd3 {[%clk 0:00:37]}  Re7 {[%clk 0:00:20]} 54. Ke3 {[%clk 0:00:37]}  Rc7 {[%clk 0:00:19]} 55. Kd3 {[%clk 0:00:37]}  Kf4 {[%clk 0:00:18]} 56. Bb5 {[%clk 0:00:36]}  Ke5 {[%clk 0:00:16]} 57. Bd7 {[%clk 0:00:35]}  Kd6 {[%clk 0:00:13]} 58. Kc4 {[%clk 0:00:35]}  Ra7 {[%clk 0:00:12]} 59. Kb5 {[%clk 0:00:34]}  Rc7 {[%clk 0:00:07]} 60. Kxa5 {[%clk 0:00:33]}  c4 {[%clk 0:00:06]} 61. bxc4 {[%clk 0:00:33]}  Rxc4 {[%clk 0:00:07]} 62. Kb5 {[%clk 0:00:33]}  Rc1 {[%clk 0:00:06]} 63. a5 {[%clk 0:00:33]}  Rb1+ {[%clk 0:00:06]} 64. Ka6 {[%clk 0:00:32]}  Rb2 {[%clk 0:00:06]} 65. Ka7 {[%clk 0:00:32]}  Rb1 {[%clk 0:00:05]} 66. a6 {[%clk 0:00:32]}  Rb2 {[%clk 0:00:05]} 67. Ka8 {[%clk 0:00:32]}  Rb1 {[%clk 0:00:06]} 68. Bc8 {[%clk 0:00:31]}  Kc7 {[%clk 0:00:04]} 69. Bb7 {[%clk 0:00:17]} 1-0


[Site "https://www.chess.com"]

[Event "Titled Tuesday Blitz February 22 Late 2022"]
[White "Stanisz, Patryk"]
[Black "Hamley, Ryan"]
[WhiteFideId "1123106"]
[BlackFideId "30959497"]
[WhiteElo "1876"]
[BlackElo "2447"]
[Result "0-1"]
[Round "04"]
[TimeControl "180+1"]
[Date "2022.02.23"]
[WhiteClock "0:00:19"]
[BlackClock "0:00:12"]

1. Nf3 {[%clk 0:03:00]}  g6 {[%clk 0:02:59]} 2. c4 {[%clk 0:02:59]}  Bg7 {[%clk 0:03:00]} 3. Nc3 {[%clk 0:02:59]}  c5 {[%clk 0:03:00]} 4. g3 {[%clk 0:02:59]}  Nc6 {[%clk 0:03:00]} 5. Bg2 {[%clk 0:02:59]}  Nf6 {[%clk 0:03:01]} 6. O-O {[%clk 0:03:00]}  O-O {[%clk 0:03:00]} 7. b3 {[%clk 0:02:56]}  d5 {[%clk 0:02:59]} 8. cxd5 {[%clk 0:02:56]}  Nxd5 {[%clk 0:02:59]} 9. Bb2 {[%clk 0:02:55]}  Nc7 {[%clk 0:02:50]} 10. Na4 {[%clk 0:02:54]}  Bxb2 {[%clk 0:02:42]} 11. Nxb2 {[%clk 0:02:55]}  b6 {[%clk 0:02:42]} 12. d3 {[%clk 0:02:49]}  Bb7 {[%clk 0:02:41]} 13. Qd2 {[%clk 0:02:48]}  Ne6 {[%clk 0:02:37]} 14. Qh6 {[%clk 0:02:45]}  Qd5 {[%clk 0:02:19]} 15. Nc4 {[%clk 0:02:42]}  Qf5 {[%clk 0:02:15]} 16. Ne3 {[%clk 0:02:24]}  Qf6 {[%clk 0:02:10]} 17. Nd5 {[%clk 0:02:23]}  Qg7 {[%clk 0:02:11]} 18. Nxe7+ {[%clk 0:02:22]}  Nxe7 {[%clk 0:02:10]} 19. Qd2 {[%clk 0:02:10]}  Rad8 {[%clk 0:02:06]} 20. h4 {[%clk 0:02:09]}  h5 {[%clk 0:02:02]} 21. Rac1 {[%clk 0:02:08]}  Nf5 {[%clk 0:02:01]} 22. Rfd1 {[%clk 0:02:03]}  Rfe8 {[%clk 0:01:59]} 23. b4 {[%clk 0:01:56]}  Rd7 {[%clk 0:01:37]} 24. a4 {[%clk 0:01:43]}  Ned4 {[%clk 0:01:35]} 25. e4 {[%clk 0:01:34]}  Nxf3+ {[%clk 0:01:34]} 26. Bxf3 {[%clk 0:01:33]}  Nd4 {[%clk 0:01:34]} 27. Qe3 {[%clk 0:01:25]}  Rc8 {[%clk 0:01:26]} 28. bxc5 {[%clk 0:01:23]}  Rxc5 {[%clk 0:01:23]} 29. Bg2 {[%clk 0:01:17]}  Rdc7 {[%clk 0:01:20]} 30. Rxc5 {[%clk 0:01:13]}  Rxc5 {[%clk 0:01:21]} 31. Kh2 {[%clk 0:01:07]}  Rc2 {[%clk 0:01:08]} 32. Qf4 {[%clk 0:00:56]}  Kh7 {[%clk 0:00:56]} 33. e5 {[%clk 0:00:50]}  Bxg2 {[%clk 0:00:55]} 34. Kxg2 {[%clk 0:00:51]}  Ne6 {[%clk 0:00:54]} 35. Qe3 {[%clk 0:00:49]}  Qf8 {[%clk 0:00:50]} 36. d4 {[%clk 0:00:46]}  Rc8 {[%clk 0:00:16]} 37. g4 {[%clk 0:00:42]}  hxg4 {[%clk 0:00:15]} 38. d5 {[%clk 0:00:36]}  Nc5 {[%clk 0:00:14]} 39. h5 {[%clk 0:00:26]}  Qh6 {[%clk 0:00:06]} 40. hxg6+ {[%clk 0:00:25]}  Kxg6 {[%clk 0:00:06]} 41. Qg3 {[%clk 0:00:19]}  Qh3+ {[%clk 0:00:06]} 42. Qxh3 {[%clk 0:00:19]}  gxh3+ {[%clk 0:00:07]} 43. Kxh3 {[%clk 0:00:20]}  Kf5 {[%clk 0:00:08]} 44. f4 {[%clk 0:00:14]}  Kxf4 {[%clk 0:00:07]} 45. e6 {[%clk 0:00:14]}  fxe6 {[%clk 0:00:07]} 46. d6 {[%clk 0:00:13]}  Rd8 {[%clk 0:00:07]} 47. a5 {[%clk 0:00:11]}  Ke5 {[%clk 0:00:06]} 48. axb6 {[%clk 0:00:11]}  axb6 {[%clk 0:00:06]} 49. d7 {[%clk 0:00:09]}  Rxd7 {[%clk 0:00:06]} 50. Re1+ {[%clk 0:00:10]}  Ne4 {[%clk 0:00:05]} 51. Rb1 {[%clk 0:00:11]}  Rd6 {[%clk 0:00:05]} 52. Kg2 {[%clk 0:00:10]}  Kd4 {[%clk 0:00:05]} 53. Rb4+ {[%clk 0:00:08]}  Kd5 {[%clk 0:00:04]} 54. Kf3 {[%clk 0:00:06]}  Nc5 {[%clk 0:00:05]} 55. Rb5 {[%clk 0:00:05]}  e5 {[%clk 0:00:05]} 56. Ke3 {[%clk 0:00:05]}  Rf6 {[%clk 0:00:05]} 57. Rb1 {[%clk 0:00:05]}  e4 {[%clk 0:00:06]} 58. Rd1+ {[%clk 0:00:05]}  Ke5 {[%clk 0:00:06]} 59. Rd8 {[%clk 0:00:06]}  Rf3+ {[%clk 0:00:06]} 60. Ke2 {[%clk 0:00:06]}  Ne6 {[%clk 0:00:07]} 61. Rb8 {[%clk 0:00:06]}  Nd4+ {[%clk 0:00:07]} 62. Kd2 {[%clk 0:00:05]}  Rd3+ {[%clk 0:00:05]} 63. Ke1 {[%clk 0:00:05]}  b5 {[%clk 0:00:06]} 64. Re8+ {[%clk 0:00:04]}  Kf4 {[%clk 0:00:06]} 65. Rf8+ {[%clk 0:00:05]}  Ke3 {[%clk 0:00:07]} 66. Rh8 {[%clk 0:00:04]}  Ra3 {[%clk 0:00:07]} 67. Rh3+ {[%clk 0:00:02]}  Nf3+ {[%clk 0:00:07]} 68. Kd1 {[%clk 0:00:03]}  b4 {[%clk 0:00:06]} 69. Rh4 {[%clk 0:00:02]}  b3 {[%clk 0:00:05]} 70. Kc1 {[%clk 0:00:03]}  Ra2 {[%clk 0:00:05]} 71. Kb1 {[%clk 0:00:03]}  Re2 {[%clk 0:00:04]} 72. Rh3 {[%clk 0:00:04]}  Kd2 {[%clk 0:00:03]} 73. Rh8 {[%clk 0:00:05]}  e3 {[%clk 0:00:02]} 74. Kb2 {[%clk 0:00:06]}  Ke1+ {[%clk 0:00:03]} 75. Kxb3 {[%clk 0:00:06]}  Kf2 {[%clk 0:00:03]} 76. Re8 {[%clk 0:00:05]}  Re1 {[%clk 0:00:04]} 77. Kc3 {[%clk 0:00:06]}  e2 {[%clk 0:00:04]} 78. Kd3 {[%clk 0:00:07]}  Rd1+ {[%clk 0:00:04]} 79. Kc2 {[%clk 0:00:07]}  e1=Q {[%clk 0:00:05]} 80. Rxe1 {[%clk 0:00:07]}  Rxe1 {[%clk 0:00:06]} 81. Kd3 {[%clk 0:00:07]}  Re7 {[%clk 0:00:06]} 82. Kc4 {[%clk 0:00:07]}  Nh4 {[%clk 0:00:06]} 83. Kd5 {[%clk 0:00:08]}  Kf3 {[%clk 0:00:07]} 84. Kd6 {[%clk 0:00:09]}  Re2 {[%clk 0:00:07]} 85. Kd5 {[%clk 0:00:09]}  Kf4 {[%clk 0:00:07]} 86. Kd4 {[%clk 0:00:10]}  Rd2+ {[%clk 0:00:07]} 87. Kc3 {[%clk 0:00:10]}  Rd8 {[%clk 0:00:08]} 88. Kc4 {[%clk 0:00:11]}  Ke5 {[%clk 0:00:08]} 89. Kc5 {[%clk 0:00:11]}  Rc8+ {[%clk 0:00:08]} 90. Kb5 {[%clk 0:00:12]}  Rc1 {[%clk 0:00:09]} 91. Kb4 {[%clk 0:00:12]}  Kd5 {[%clk 0:00:09]} 92. Kb3 {[%clk 0:00:13]}  Kd4 {[%clk 0:00:10]} 93. Kb2 {[%clk 0:00:13]}  Rc7 {[%clk 0:00:10]} 94. Kb3 {[%clk 0:00:14]}  Rc8 {[%clk 0:00:11]} 95. Kb2 {[%clk 0:00:14]}  Kd3 {[%clk 0:00:11]} 96. Ka3 {[%clk 0:00:15]}  Rb8 {[%clk 0:00:11]} 97. Ka4 {[%clk 0:00:15]}  Kc3 {[%clk 0:00:11]} 98. Ka5 {[%clk 0:00:16]}  Kc4 {[%clk 0:00:12]} 99. Ka6 {[%clk 0:00:17]}  Kc5 {[%clk 0:00:12]} 100. Ka7 {[%clk 0:00:17]}  Rb1 {[%clk 0:00:12]} 101. Ka8 {[%clk 0:00:18]}  Kc6 {[%clk 0:00:12]} 102. Ka7 {[%clk 0:00:19]}  Rb2 {[%clk 0:00:12]} 0-1


[Site "https://www.chess.com"]

[Event "Titled Tuesday Blitz February 22 Late 2022"]
[White "Suder, Jakub"]
[Black "Vifleemskaia, Svetlana"]
[WhiteFideId "1195310"]
[BlackFideId "4129490"]
[WhiteElo "2058"]
[BlackElo "1901"]
[Result "1-0"]
[Round "04"]
[TimeControl "180+1"]
[Date "2022.02.23"]
[WhiteClock "0:00:09"]
[BlackClock "0:00:02"]

1. d4 {[%clk 0:03:00]}  Nf6 {[%clk 0:02:57]} 2. c4 {[%clk 0:02:59]}  e6 {[%clk 0:02:57]} 3. Nc3 {[%clk 0:02:59]}  Bb4 {[%clk 0:02:57]} 4. f3 {[%clk 0:02:59]}  d5 {[%clk 0:02:57]} 5. a3 {[%clk 0:02:59]}  Bxc3+ {[%clk 0:02:56]} 6. bxc3 {[%clk 0:03:00]}  c5 {[%clk 0:02:57]} 7. cxd5 {[%clk 0:03:01]}  exd5 {[%clk 0:02:57]} 8. e3 {[%clk 0:03:01]}  Qc7 {[%clk 0:02:57]} 9. Ne2 {[%clk 0:02:54]}  O-O {[%clk 0:02:53]} 10. Ng3 {[%clk 0:02:54]}  Re8 {[%clk 0:02:52]} 11. Be2 {[%clk 0:02:53]}  b6 {[%clk 0:02:46]} 12. O-O {[%clk 0:02:53]}  Ba6 {[%clk 0:02:46]} 13. Bxa6 {[%clk 0:02:49]}  Nxa6 {[%clk 0:02:44]} 14. Qd3 {[%clk 0:02:49]}  Qb7 {[%clk 0:02:31]} 15. Bb2 {[%clk 0:02:43]}  Re6 {[%clk 0:02:26]} 16. Rae1 {[%clk 0:02:39]}  Rae8 {[%clk 0:02:24]} 17. Re2 {[%clk 0:02:25]}  b5 {[%clk 0:01:53]} 18. Rfe1 {[%clk 0:02:24]}  b4 {[%clk 0:01:43]} 19. axb4 {[%clk 0:02:23]}  cxb4 {[%clk 0:01:42]} 20. c4 {[%clk 0:02:16]}  dxc4 {[%clk 0:01:33]} 21. Qxc4 {[%clk 0:02:17]}  Nd5 {[%clk 0:01:26]} 22. e4 {[%clk 0:02:10]}  Nf4 {[%clk 0:01:23]} 23. Rc2 {[%clk 0:02:03]}  b3 {[%clk 0:01:04]} 24. Rc3 {[%clk 0:02:00]}  Rb6 {[%clk 0:01:01]} 25. d5 {[%clk 0:01:54]}  Nb4 {[%clk 0:00:47]} 26. Rxb3 {[%clk 0:01:45]}  Nbd3 {[%clk 0:00:44]} 27. Rxb6 {[%clk 0:01:12]}  Qxb6+ {[%clk 0:00:42]} 28. Bd4 {[%clk 0:01:10]}  Qa5 {[%clk 0:00:39]} 29. Rd1 {[%clk 0:01:03]}  Ne1 {[%clk 0:00:13]} 30. Bc3 {[%clk 0:00:50]}  Qb6+ {[%clk 0:00:13]} 31. Bd4 {[%clk 0:00:50]}  Qa5 {[%clk 0:00:13]} 32. Nf5 {[%clk 0:00:30]}  Nfxg2 {[%clk 0:00:08]} 33. Nxg7 {[%clk 0:00:22]}  Rb8 {[%clk 0:00:06]} 34. Nf5 {[%clk 0:00:19]}  Qd8 {[%clk 0:00:05]} 35. Nh6+ {[%clk 0:00:11]}  Kf8 {[%clk 0:00:04]} 36. Qc5+ {[%clk 0:00:11]}  Qe7 {[%clk 0:00:04]} 37. Bg7+ {[%clk 0:00:11]}  Ke8 {[%clk 0:00:03]} 38. Qc6+ {[%clk 0:00:11]}  Qd7 {[%clk 0:00:03]} 39. Qf6 {[%clk 0:00:10]}  Qh3 {[%clk 0:00:02]} 40. Qxf7+ {[%clk 0:00:10]}  Kd8 {[%clk 0:00:01]} 41. Bf6+ {[%clk 0:00:10]}  Kc8 {[%clk 0:00:02]} 42. Rc1+ {[%clk 0:00:09]} 1-0


[Site "https://www.chess.com"]

[Event "Titled Tuesday Blitz February 22 Late 2022"]
[White "Toncheva, Nadya"]
[Black "Velikanov, Alexander"]
[WhiteFideId "2924056"]
[BlackFideId "2039290"]
[WhiteElo "1920"]
[BlackElo "2259"]
[Result "0-1"]
[Round "04"]
[TimeControl "180+1"]
[Date "2022.02.23"]
[WhiteClock "0:00:14"]
[BlackClock "0:00:12"]

1. e4 {[%clk 0:03:00]}  c5 {[%clk 0:02:57]} 2. Nf3 {[%clk 0:03:01]}  Nc6 {[%clk 0:02:56]} 3. d4 {[%clk 0:03:01]}  cxd4 {[%clk 0:02:56]} 4. Nxd4 {[%clk 0:03:02]}  Nf6 {[%clk 0:02:54]} 5. f3 {[%clk 0:03:01]}  e5 {[%clk 0:02:48]} 6. Nb3 {[%clk 0:02:56]}  d5 {[%clk 0:02:36]} 7. Bg5 {[%clk 0:02:56]}  d4 {[%clk 0:02:29]} 8. c3 {[%clk 0:02:55]}  h6 {[%clk 0:02:28]} 9. Bxf6 {[%clk 0:02:54]}  Qxf6 {[%clk 0:02:29]} 10. Bb5 {[%clk 0:02:54]}  Qh4+ {[%clk 0:01:38]} 11. g3 {[%clk 0:02:51]}  Qh3 {[%clk 0:01:38]} 12. Kf2 {[%clk 0:01:59]}  Bd7 {[%clk 0:01:15]} 13. Bxc6 {[%clk 0:01:57]}  Bxc6 {[%clk 0:01:16]} 14. cxd4 {[%clk 0:01:58]}  exd4 {[%clk 0:01:15]} 15. Qxd4 {[%clk 0:01:55]}  h5 {[%clk 0:01:01]} 16. Nc3 {[%clk 0:01:37]}  Rh6 {[%clk 0:00:50]} 17. Qe5+ {[%clk 0:01:29]}  Re6 {[%clk 0:00:47]} 18. Qf5 {[%clk 0:01:20]}  Qxf5 {[%clk 0:00:40]} 19. exf5 {[%clk 0:01:21]}  Rf6 {[%clk 0:00:28]} 20. Rhe1+ {[%clk 0:01:20]}  Kd8 {[%clk 0:00:27]} 21. Rad1+ {[%clk 0:01:19]}  Kc7 {[%clk 0:00:27]} 22. Kg2 {[%clk 0:01:13]}  Rxf5 {[%clk 0:00:24]} 23. Nd4 {[%clk 0:01:10]}  Rf6 {[%clk 0:00:23]} 24. Nxc6 {[%clk 0:00:55]}  bxc6 {[%clk 0:00:24]} 25. Ne4 {[%clk 0:00:54]}  Rg6 {[%clk 0:00:20]} 26. Rd4 {[%clk 0:00:45]}  Rb8 {[%clk 0:00:18]} 27. b3 {[%clk 0:00:42]}  Rb4 {[%clk 0:00:17]} 28. Red1 {[%clk 0:00:26]}  Rxd4 {[%clk 0:00:16]} 29. Rxd4 {[%clk 0:00:26]}  a5 {[%clk 0:00:17]} 30. f4 {[%clk 0:00:21]}  Be7 {[%clk 0:00:08]} 31. f5 {[%clk 0:00:17]}  Rh6 {[%clk 0:00:08]} 32. Kf3 {[%clk 0:00:16]}  Rh8 {[%clk 0:00:08]} 33. Nd2 {[%clk 0:00:10]}  Rb8 {[%clk 0:00:03]} 34. Nc4 {[%clk 0:00:07]}  a4 {[%clk 0:00:04]} 35. bxa4 {[%clk 0:00:07]}  Rb4 {[%clk 0:00:05]} 36. Re4 {[%clk 0:00:06]}  Bf6 {[%clk 0:00:04]} 37. a5 {[%clk 0:00:05]}  Ra4 {[%clk 0:00:04]} 38. h3 {[%clk 0:00:03]}  Rxa2 {[%clk 0:00:05]} 39. g4 {[%clk 0:00:03]}  h4 {[%clk 0:00:05]} 40. Kf4 {[%clk 0:00:01]}  Rf2+ {[%clk 0:00:04]} 41. Ke3 {[%clk 0:00:02]}  Rh2 {[%clk 0:00:05]} 42. Rf4 {[%clk 0:00:01]}  Bg5 {[%clk 0:00:05]} 43. Ke4 {[%clk 0:00:02]}  Bxf4 {[%clk 0:00:05]} 44. Kxf4 {[%clk 0:00:02]}  Rxh3 {[%clk 0:00:06]} 45. g5 {[%clk 0:00:03]}  Rh2 {[%clk 0:00:06]} 46. Ne3 {[%clk 0:00:03]}  Ra2 {[%clk 0:00:07]} 47. Kg4 {[%clk 0:00:03]}  Ra4+ {[%clk 0:00:07]} 48. Kh3 {[%clk 0:00:03]}  Ra3 {[%clk 0:00:08]} 49. Kxh4 {[%clk 0:00:03]}  Rxe3 {[%clk 0:00:08]} 50. Kh5 {[%clk 0:00:04]}  Ra3 {[%clk 0:00:08]} 51. f6 {[%clk 0:00:04]}  gxf6 {[%clk 0:00:08]} 52. gxf6 {[%clk 0:00:04]}  Rxa5+ {[%clk 0:00:09]} 53. Kh6 {[%clk 0:00:05]}  Rf5 {[%clk 0:00:09]} 54. Kg7 {[%clk 0:00:05]}  c5 {[%clk 0:00:10]} 55. Kxf7 {[%clk 0:00:06]}  c4 {[%clk 0:00:11]} 56. Ke6 {[%clk 0:00:06]}  Rxf6+ {[%clk 0:00:11]} 57. Kxf6 {[%clk 0:00:07]}  c3 {[%clk 0:00:12]} 58. Ke5 {[%clk 0:00:08]}  c2 {[%clk 0:00:13]} 59. Kd4 {[%clk 0:00:09]}  c1=Q {[%clk 0:00:13]} 60. Kd3 {[%clk 0:00:10]}  Qc5 {[%clk 0:00:13]} 61. Ke4 {[%clk 0:00:10]}  Qd6 {[%clk 0:00:12]} 62. Kf5 {[%clk 0:00:10]}  Qe7 {[%clk 0:00:12]} 63. Kg6 {[%clk 0:00:11]}  Qe5 {[%clk 0:00:12]} 64. Kf7 {[%clk 0:00:11]}  Qd6 {[%clk 0:00:12]} 65. Kg7 {[%clk 0:00:11]}  Qe6 {[%clk 0:00:12]} 66. Kh7 {[%clk 0:00:12]}  Qg4 {[%clk 0:00:12]} 67. Kh6 {[%clk 0:00:12]}  Kd7 {[%clk 0:00:12]} 68. Kh7 {[%clk 0:00:12]}  Ke7 {[%clk 0:00:13]} 69. Kh6 {[%clk 0:00:13]}  Kf7 {[%clk 0:00:14]} 70. Kh7 {[%clk 0:00:14]}  Qh4# {[%clk 0:00:12]} 0-1


[Site "https://www.chess.com"]

[Event "Titled Tuesday Blitz February 22 Late 2022"]
[White "Urazayev, Arystanbek"]
[Black "Novikov, Evgenij"]
[WhiteFideId "13709810"]
[BlackFideId "4125380"]
[WhiteElo "2321"]
[BlackElo "2242"]
[Result "0-1"]
[Round "04"]
[TimeControl "180+1"]
[Date "2022.02.23"]
[WhiteClock "0:00:56"]
[BlackClock "0:01:01"]

1. Nf3 {[%clk 0:03:00]}  d6 {[%clk 0:02:58]} 2. c4 {[%clk 0:02:59]}  Nf6 {[%clk 0:02:59]} 3. Nc3 {[%clk 0:02:57]}  g6 {[%clk 0:03:00]} 4. g3 {[%clk 0:02:54]}  Bg7 {[%clk 0:03:00]} 5. Bg2 {[%clk 0:02:55]}  O-O {[%clk 0:03:01]} 6. d4 {[%clk 0:02:55]}  c6 {[%clk 0:03:02]} 7. O-O {[%clk 0:02:55]}  Qa5 {[%clk 0:03:01]} 8. Nd2 {[%clk 0:02:54]}  e5 {[%clk 0:02:59]} 9. Nb3 {[%clk 0:02:54]}  Qc7 {[%clk 0:02:58]} 10. d5 {[%clk 0:02:50]}  a5 {[%clk 0:02:53]} 11. dxc6 {[%clk 0:02:44]}  bxc6 {[%clk 0:02:52]} 12. Nb5 {[%clk 0:02:43]}  cxb5 {[%clk 0:02:53]} 13. Bxa8 {[%clk 0:02:43]}  bxc4 {[%clk 0:02:53]} 14. Nd2 {[%clk 0:02:43]}  d5 {[%clk 0:02:50]} 15. e4 {[%clk 0:02:40]}  Bh3 {[%clk 0:02:42]} 16. exd5 {[%clk 0:02:37]}  Na6 {[%clk 0:02:26]} 17. Bc6 {[%clk 0:02:36]}  Nb4 {[%clk 0:02:25]} 18. Re1 {[%clk 0:02:17]}  Nxc6 {[%clk 0:02:22]} 19. dxc6 {[%clk 0:02:18]}  Qxc6 {[%clk 0:02:23]} 20. Qf3 {[%clk 0:02:19]}  Qc5 {[%clk 0:02:10]} 21. Ne4 {[%clk 0:02:11]}  Nxe4 {[%clk 0:02:09]} 22. Qxe4 {[%clk 0:02:12]}  f5 {[%clk 0:01:57]} 23. Qb7 {[%clk 0:02:12]}  f4 {[%clk 0:01:46]} 24. gxf4 {[%clk 0:02:12]}  exf4 {[%clk 0:01:40]} 25. Qf3 {[%clk 0:02:11]}  Qg5+ {[%clk 0:01:35]} 26. Kh1 {[%clk 0:02:11]}  Bg4 {[%clk 0:01:35]} 27. Qg2 {[%clk 0:02:12]}  Qh5 {[%clk 0:01:23]} 28. Kg1 {[%clk 0:01:30]}  Bf3 {[%clk 0:01:22]} 29. Re5 {[%clk 0:01:31]}  Rf5 {[%clk 0:01:05]} 30. Rxf5 {[%clk 0:01:16]}  gxf5 {[%clk 0:01:05]} 31. Bxf4 {[%clk 0:00:55]}  Bxg2 {[%clk 0:01:05]} 32. Kxg2 {[%clk 0:00:56]}  Qg4+ {[%clk 0:01:03]} 33. Bg3 {[%clk 0:00:56]}  Qe4+ {[%clk 0:01:04]} 34. Kg1 {[%clk 0:00:56]}  f4 {[%clk 0:01:04]} 35. f3 {[%clk 0:00:55]}  Qxf3 {[%clk 0:01:02]} 36. Bf2 {[%clk 0:00:56]}  Qg4+ {[%clk 0:01:01]} 0-1


[Site "https://www.chess.com"]

[Event "Titled Tuesday Blitz February 22 Late 2022"]
[White "Vidit, Santosh Gujrathi"]
[Black "Lodici, Lorenzo"]
[WhiteFideId "5029465"]
[BlackFideId "884189"]
[WhiteElo "2654"]
[BlackElo "2265"]
[Result "1/2-1/2"]
[Round "04"]
[TimeControl "180+1"]
[Date "2022.02.22"]
[WhiteClock "0:00:07"]
[BlackClock "0:00:04"]

1. d4 {[%clk 0:03:00]}  d5 {[%clk 0:02:56]} 2. c4 {[%clk 0:03:01]}  e6 {[%clk 0:02:57]} 3. Nc3 {[%clk 0:02:58]}  Bb4 {[%clk 0:02:57]} 4. a3 {[%clk 0:02:56]}  Bxc3+ {[%clk 0:02:57]} 5. bxc3 {[%clk 0:02:57]}  c6 {[%clk 0:02:58]} 6. e3 {[%clk 0:02:56]}  b6 {[%clk 0:02:58]} 7. a4 {[%clk 0:02:53]}  Ba6 {[%clk 0:02:57]} 8. Ba3 {[%clk 0:02:40]}  Bxc4 {[%clk 0:02:54]} 9. Bxc4 {[%clk 0:02:39]}  dxc4 {[%clk 0:02:55]} 10. Nf3 {[%clk 0:02:27]}  Qd5 {[%clk 0:02:35]} 11. O-O {[%clk 0:02:21]}  Nd7 {[%clk 0:02:35]} 12. Nd2 {[%clk 0:02:12]}  Ngf6 {[%clk 0:02:17]} 13. Qc2 {[%clk 0:02:07]}  c5 {[%clk 0:01:53]} 14. e4 {[%clk 0:02:07]}  Qc6 {[%clk 0:01:53]} 15. Nxc4 {[%clk 0:01:31]}  O-O {[%clk 0:01:53]} 16. Nd2 {[%clk 0:01:17]}  Rfd8 {[%clk 0:01:53]} 17. Rac1 {[%clk 0:01:01]}  Rac8 {[%clk 0:01:50]} 18. Qb1 {[%clk 0:00:34]}  Qxa4 {[%clk 0:01:50]} 19. Bb2 {[%clk 0:00:34]}  c4 {[%clk 0:01:33]} 20. f4 {[%clk 0:00:33]}  a5 {[%clk 0:01:27]} 21. Nf3 {[%clk 0:00:32]}  Qc6 {[%clk 0:01:25]} 22. Rce1 {[%clk 0:00:31]}  b5 {[%clk 0:01:23]} 23. Ba3 {[%clk 0:00:24]}  b4 {[%clk 0:01:12]} 24. cxb4 {[%clk 0:00:24]}  Rb8 {[%clk 0:01:12]} 25. b5 {[%clk 0:00:15]}  Rxb5 {[%clk 0:01:10]} 26. Qc2 {[%clk 0:00:16]}  Rb3 {[%clk 0:01:09]} 27. Be7 {[%clk 0:00:15]}  Re8 {[%clk 0:01:09]} 28. Bxf6 {[%clk 0:00:14]}  Nxf6 {[%clk 0:01:10]} 29. Ne5 {[%clk 0:00:15]}  Qb6 {[%clk 0:01:05]} 30. Qxc4 {[%clk 0:00:13]}  Rb4 {[%clk 0:01:03]} 31. Qc5 {[%clk 0:00:13]}  a4 {[%clk 0:00:46]} 32. Qxb6 {[%clk 0:00:10]}  Rxb6 {[%clk 0:00:47]} 33. Ra1 {[%clk 0:00:10]}  Ra6 {[%clk 0:00:45]} 34. Ra3 {[%clk 0:00:10]}  Nxe4 {[%clk 0:00:45]} 35. Rfa1 {[%clk 0:00:10]}  Rea8 {[%clk 0:00:44]} 36. Nd3 {[%clk 0:00:11]}  f6 {[%clk 0:00:17]} 37. Nc5 {[%clk 0:00:11]}  Nxc5 {[%clk 0:00:16]} 38. dxc5 {[%clk 0:00:12]}  Kf7 {[%clk 0:00:17]} 39. c6 {[%clk 0:00:11]}  Ke7 {[%clk 0:00:18]} 40. c7 {[%clk 0:00:06]}  Kd7 {[%clk 0:00:10]} 41. Rc3 {[%clk 0:00:06]}  Rc8 {[%clk 0:00:02]} 42. Rc4 {[%clk 0:00:04]}  a3 {[%clk 0:00:02]} 43. Rc3 {[%clk 0:00:04]}  a2 {[%clk 0:00:02]} 44. Rc2 {[%clk 0:00:05]}  Rxc7 {[%clk 0:00:03]} 45. Rcxa2 {[%clk 0:00:05]}  Rxa2 {[%clk 0:00:03]} 46. Rxa2 {[%clk 0:00:06]}  Kd6 {[%clk 0:00:03]} 47. Kf2 {[%clk 0:00:06]}  Kd5 {[%clk 0:00:04]} 48. Rd2+ {[%clk 0:00:06]}  Ke4 {[%clk 0:00:04]} 49. Re2+ {[%clk 0:00:06]}  Kf5 {[%clk 0:00:05]} 50. g3 {[%clk 0:00:06]}  h5 {[%clk 0:00:05]} 51. Kg2 {[%clk 0:00:06]}  h4 {[%clk 0:00:05]} 52. Kh3 {[%clk 0:00:07]}  g5 {[%clk 0:00:04]} 53. fxg5 {[%clk 0:00:07]}  hxg3 {[%clk 0:00:04]} 54. gxf6 {[%clk 0:00:06]}  gxh2 {[%clk 0:00:02]} 55. Rf2+ {[%clk 0:00:06]}  Kg6 {[%clk 0:00:02]} 56. Kxh2 {[%clk 0:00:06]}  Kf7 {[%clk 0:00:01]} 57. Kg3 {[%clk 0:00:07]}  Rc5 {[%clk 0:00:02]} 58. Kg4 {[%clk 0:00:07]}  Rc4+ {[%clk 0:00:02]} 59. Kg3 {[%clk 0:00:07]}  Rc5 {[%clk 0:00:03]} 60. Kg4 {[%clk 0:00:07]}  Rc4+ {[%clk 0:00:04]} 61. Kg3 {[%clk 0:00:07]}  Rc5 {[%clk 0:00:04]} 1/2-1/2


[Site "https://www.chess.com"]